Cogmind - Beta 13 @@@ ROGUE MODE // 2024.05.04 @ 21:23:56 Player: paplal Result: Destroyed by G-34 Mercenary with Small Laser Performance ------------- Evolutions (1) 500 Regions Visited (3) 600 Robots Destroyed (52) 260 Value Destroyed (892) 892 Prototype IDs (1) 20 Alien Tech Used (0) 0 Bonus (0) 0 TOTAL SCORE: 2272 Bonus ------- None Cogmind --------- Core Integrity 0/400 Matter 149/300 Energy 349/350 System Corruption 0% Temperature Cool (6) Movement Core (450) Ox8 Location -9/Materials Parts ------- > --- POWER (1) -------- (None) > --- PROPULSION (2) --- (None) > --- UTILITY (4) ------ Large Storage Unit High-capacity Battery Terrain Scan Processor > --- WEAPON (2) ------- Improved Assault Rifle > --- INVENTORY (15) --- Ion Engine Ion Engine Light Ion Engine Light Ion Engine Light Ion Engine Light Treads Aluminum Leg Improved Aluminum Leg Improved Heat Sink Improved Targeting Computer Shield Generator Shield Generator Particle Gun Light EM Pulse Cannon Light Assault Rifle Peak State ------------ > --- POWER ------------ (None) > --- PROPULSION ------- Aluminum Leg > --- UTILITY ---------- Large Storage Unit High-capacity Battery Terrain Scan Processor > --- WEAPON ----------- Light Assault Rifle Improved Assault Rifle > --- INVENTORY -------- Ion Engine Ion Engine Light Ion Engine Light Ion Engine Light Ion Engine Light Ion Engine Improved Targeting Computer Shield Generator Light EM Pulse Cannon [Rating: 10] Favorites ----------- Power Light Ion Engine Engine Light Ion Engine Propulsion Aluminum Leg Treads Light Treads Leg Aluminum Leg Utility Large Storage Unit Device Tractor Beam Storage Large Storage Unit Processor Terrain Scan Processor Weapon Hammer Energy Gun EM Pulse Gun Ballistic Gun Assault Rifle Launcher Mini Grenade Launcher Impact Weapon Hammer Build | -11 -10 -10 -9 ------- Run | Yrd Mat Min Mat Slots Evolved 2 | . . . 2 Power . | . . . . Propulsion . | . . . . Utility 2 | . . . 2 Weapon . | . . . . Parts Attached 26 | 5 4 8 9 Power 4 | . 1 2 1 Engine 4 | . 1 2 1 Core . | . . . . Reactor . | . . . . Propulsion 6 | 2 . 2 2 Treads 2 | . . 2 . Leg 4 | 2 . . 2 Wheel . | . . . . Hover . | . . . . Flight . | . . . . Utility 6 | . 2 1 3 Device 3 | . 1 1 1 Storage 2 | . 1 . 1 Processor 1 | . . . 1 Hackware . | . . . . Protection . | . . . . Artifact . | . . . . Weapon 10 | 3 1 3 3 Energy Gun 2 | 1 . 1 . Energy Cannon . | . . . . Ballistic Gun 4 | 2 . . 2 Ballistic Cannon . | . . . . Launcher 3 | . 1 1 1 Special Weapon . | . . . . Impact Weapon 1 | . . 1 . Slashing Weapon . | . . . . Piercing Weapon . | . . . . Special Melee Weapon . | . . . . Unidentified Prototypes 1 | . . . 1 Parts Lost 16 | . 1 6 9 Power 4 | . . 2 2 Propulsion 4 | . . 1 3 Utility 2 | . . 1 1 Weapon 6 | . 1 2 3 Highest Loss Streak 3 | . 1 3 3 To Critical Strikes . | . . . . Average Slot Usage (%) 72 | . 91 62 66 Engine 8 | . 14 6 6 Treads 3 | . . 11 2 Leg 10 | . 28 9 2 Device 7 | . 11 6 5 Storage 17 | . 13 14 21 Processor 5 | . . . 10 Energy Gun 1 | . 5 . . Ballistic Gun 4 | . 8 . 3 Launcher 8 | . 8 12 6 Impact Weapon 4 | . . . 7 Naked Turns . | . . . . Heaviest Build 33 | 4 30 28 33 Greatest Support 40 | 20 20 40 40 Greatest Overweight (x) 10 | 1 1 2 10 Average Overweight (x) 2 | . . . 4 Largest Inventory Capacity 15 | 5 15 15 15 Average Capacity 14 | 5 14 15 15 Most Carried 15 | 5 14 15 15 Average Carried 10 | 4 10 13 9 Final Capacity 15 | 5 15 15 15 Final Carried 15 | 5 14 11 15 Class Distribution -------------------- 100% | Mutant Dominant Class ---------------- Mutant | -10/Materials Mutant | -10/Mines Mutant | -9/Materials Resources | -11 -10 -10 -9 ----------- Run | Yrd Mat Min Mat Matter Collected 768 | 195 229 42 302 Remotely 54 | . . . 54 Salvage Created 787 | 11 227 191 358 Parts 87 | 2 26 18 41 Haulers Intercepted . | . . . . Recyclers Shooed 2 | . 1 1 . Parts Field Recycled . | . . . . Retrieved Matter . | . . . . Parts Self-Destructed . | . . . . Prevented . | . . . . Kills | -11 -10 -10 -9 ------- Run | Yrd Mat Min Mat Combat Hostiles Destroyed 29 | . 9 8 12 Melee 1 | . . . 1 Guns 5 | . 1 1 3 AOE 22 | . 8 7 7 Classes Destroyed 10 | 1 6 1 2 Worker 6 | . 2 1 3 Builder 5 | . 2 1 2 Tunneler 3 | 1 . . 2 Recycler 1 | . . 1 . Operator 2 | . 2 . . Watcher 6 | . 3 . 3 Swarmer 16 | . 6 6 4 Grunt 9 | . 3 2 4 Brawler 1 | . . . 1 Sentry 3 | . . . 3 Best Kill Streak 8 | 1 4 3 8 Combat Bots Only 6 | . 3 3 6 Max Kills in Single Turn 4 | 1 3 3 4 Gunslinging . | . . . . Exploded 4 | . 2 3 4 Melee 1 | . . . 1 Uniques/NPCs Destroyed . | . . . . Combat | -11 -10 -10 -9 -------- Run | Yrd Mat Min Mat Hostile Shots Fired 198 | . 17 79 102 Missed 60 | . 6 21 33 Damage Taken 2101 | . 294 682 1125 Core 590 | . 77 106 407 Absorbed by Shields 54 | . . 54 . Core Remaining (%) 63 | 100 . 26 . Volleys Fired 79 | 1 17 14 47 Largest 2 | 2 2 1 2 Hottest 60 | 60 60 40 43 Shots Fired 93 | 2 26 14 51 Gun 50 | 2 15 4 29 Cannon . | . . . . Launcher 43 | . 11 10 22 Special . | . . . . Kinetic 43 | 1 13 . 29 Thermal . | . . . . Explosive 43 | . 11 10 22 Electromagnetic 7 | 1 2 4 . Robot Hit Streak 11 | 1 3 2 11 Robot Miss Streak 5 | 1 3 5 2 Penetration Max . | . . . . Secondary Targets . | . . . . Shots Hit Robots 65 | 1 14 5 45 Core Hits 76 | 1 21 17 37 Critical Kills 1 | . . . 1 Critical Parts Destroyed 2 | . . . 2 Critical Strikes 3 | . . . 3 Smash 3 | . . . 3 Melee Attacks 15 | . . . 15 Impact 15 | . . . 15 Slashing . | . . . . Piercing . | . . . . Sneak Attacks 2 | . . . 2 Combat Hostiles . | . . . . Follow-up Attacks . | . . . . Damage Inflicted 3273 | 27 926 713 1607 Guns 478 | 27 92 23 336 Cannons . | . . . . Explosions 2598 | . 826 680 1092 Melee 179 | . . . 179 Ramming 18 | . 8 10 . Kinetic 424 | 14 74 . 336 Thermal 31 | . 31 . . Explosive 2567 | . 795 680 1092 Electromagnetic 54 | 13 18 23 . Impact 179 | . . . 179 Slashing . | . . . . Piercing . | . . . . Highest Corruption . | . . . . Average Corruption . | . . . . Corruption Purged . | . . . . Corruption Blocked . | . . . . Overload Shots . | . . . . Overflow Damage 243 | . 81 47 115 Projectiles . | . . . . Explosions 177 | . 81 47 49 Melee 66 | . . . 66 Knockbacks 1 | . . . 1 Impact 1 | . . . 1 Kinetic . | . . . . Secondary . | . . . . Self-Inflicted Damage 523 | . 183 238 102 Shots 18 | . 5 7 6 Rammed 2 | . . 2 . Targets Rammed 3 | . 1 2 . Kicked 1 | . 1 . . Crushed . | . . . . Highest Temperature 19 | . 2 . 19 Average Temperature 5 | . 2 . 5 Received Heat Transfer 417 | . 27 48 342 Siege Activations . | . . . . Robots Corrupted . | . . . . Combat Hostiles . | . . . . Parts Fried 1 | . . . 1 Impact Corruptions 3 | . . . 3 Robots Melted . | . . . . Combat Hostiles . | . . . . Parts Melted . | . . . . Heat Transferred 50 | . 50 . . Parts Sabotaged . | . . . . Parts Stolen . | . . . . Parts Stripped . | . . . . Power Chain Reactions 1 | . 1 . . Alert | -11 -10 -10 -9 ------- Run | Yrd Mat Min Mat Peak Influence 356 | 5 356 252 336 Initial 79 | . 3 79 52 Average 112 | . 132 107 108 Maximum Alert Level 1 | . 1 1 1 Low Security (%) 78 | 100 61 93 80 Level 1 21 | . 38 6 19 Level 2 . | . . . . Level 3 . | . . . . Level 4 . | . . . . Level 5 . | . . . . High Security . | . . . . Max Security . | . . . . Squads Dispatched 1 | . 1 . . Investigation . | . . . . Extermination . | . . . . Reinforcement 1 | . 1 . . Assault . | . . . . Garrison . | . . . . Intercept . | . . . . Searches Triggered . | . . . . Construction Impeded . | . . . . Haulers Reinforced . | . . . . Active Scanning Responses . | . . . . Cargo Convoy Interrupts . | . . . . Stealth | -11 -10 -10 -9 --------- Run | Yrd Mat Min Mat Distress Signals 4 | . 2 . 2 Communications Jammed . | . . . . Distress Signals . | . . . . Times Spotted 50 | . 18 8 24 Peak Tracking Total 7 | . 5 3 7 Tactical Retreats 3 | . 2 . 1 Traps | -11 -10 -10 -9 ------- Run | Yrd Mat Min Mat Traps Triggered 2 | . . . 2 Indirectly . | . . . . Trap Hack Attempts . | . . . . Triggered . | . . . . Disarmed 1 | . 1 . . Reprogrammed . | . . . . Reused . | . . . . Traps Extracted . | . . . . Installed . | . . . . Triggered . | . . . . Machines | -11 -10 -10 -9 ---------- Run | Yrd Mat Min Mat Machines Disabled 3 | . . 2 1 Max in Single Turn 2 | . . 2 1 Machines Repaired . | . . . . Machines Dismantled . | . . . . Machines Sabotaged . | . . . . Overloaded Fab Kills . | . . . . Hacking | -11 -10 -10 -9 --------- Run | Yrd Mat Min Mat Machines Accessed 10 | . 5 . 5 Terminals 7 | . 5 . 2 Fabricators . | . . . . Repair Stations 1 | . . . 1 Recycling Units 2 | . . . 2 Scanalyzers . | . . . . Garrison Access . | . . . . Total Hacks 17 | . 7 . 10 Successful 11 | . 4 . 7 Failed 6 | . 3 . 3 Catastrophic . | . . . . Database Lockouts . | . . . . Manual . | . . . . Terminals 11 | . 7 . 4 Fabricators . | . . . . Repair Stations 2 | . . . 2 Recycling Units 4 | . . . 4 Scanalyzers . | . . . . Garrison Access . | . . . . Terminal Hacks 7 | . 4 . 3 Record 2 | . 2 . . Terminal Index 1 | . . . 1 Alert Level 1 | . . . 1 Locate Traps 1 | . 1 . . Disarm Traps 1 | . 1 . . Reinforcement Status 1 | . . . 1 Fabricator Hacks . | . . . . Repair Station Hacks . | . . . . Recycling Unit Hacks 4 | . . . 4 Report Inventory 3 | . . . 3 Retrieve Matter 1 | . . . 1 Scanalyzer . | . . . . Garrison Access Hacks . | . . . . Unauthorized Hacks . | . . . . Terminals . | . . . . Fabricators . | . . . . Repair Stations . | . . . . Recycling Units . | . . . . Scanalyzers . | . . . . Garrison Access . | . . . . Data Cores Recovered 2 | . 2 . . Used 1 | . 1 . . Hacking Detections 7 | . 3 . 4 Full Trace Events . | . . . . Feedback Events . | . . . . Feedback Blocked . | . . . . Robot Schematics Acquired . | . . . . Robots Built . | . . . . Authchips . | . . . . Time . | . . . . Total Robot Build Rating . | . . . . Part Schematics Acquired . | . . . . Parts Built . | . . . . Authchips . | . . . . Time . | . . . . Total Part Build Rating . | . . . . Parts Repaired . | . . . . Time . | . . . . Parts Recycled . | . . . . Recycled Matter . | . . . . Retrieved Matter . | . . . . Retrieved Components . | . . . . Parts Scanalyzed . | . . . . Part Schematics Acquired . | . . . . Parts Damaged . | . . . . Bothacking | -11 -10 -10 -9 ------------ Run | Yrd Mat Min Mat Used RIF Installer . | . . . . Robots Hacked . | . . . . Non-combat . | . . . . Combat . | . . . . Robot Hacks Applied . | . . . . Relay Couplers Released . | . . . . Fabnet Peak Effective % . | . . . . Robots Rewired . | . . . . Allies Hacked . | . . . . Hacks Repelled . | . . . . Allies | -11 -10 -10 -9 -------- Run | Yrd Mat Min Mat Total Allies . | . . . . Largest Group . | . . . . Highest-Rated Group . | . . . . Highest-Rated Ally . | . . . . Total Orders . | . . . . Ally Attacks . | . . . . Total Damage . | . . . . Kills . | . . . . Allies Corrupted . | . . . . Allies Melted . | . . . . Intel | -11 -10 -10 -9 ------- Run | Yrd Mat Min Mat Robot Analysis Total . | . . . . Derelict Logs Recovered 1 | . . 1 . Drone Launches . | . . . . Drone Recoveries . | . . . . Exploration | -11 -10 -10 -9 ------------- Run | Yrd Mat Min Mat Turns Passed 3380 | 57 873 673 1777 Spaces Moved 1219 | 47 431 294 447 Core 212 | 22 . . 190 Treads 248 | . . 137 111 Legs 759 | 25 431 157 146 Wheels . | . . . . Hover . | . . . . Flight . | . . . . Fastest Speed 50 | 50 120 160 160 Average Speed 250 | 90 188 204 357 Slowest Speed 550 | 120 190 260 550 Overloaded Moves . | . . . . Propulsion Burnouts . | . . . . Robots Hopped . | . . . . Cave-ins Triggered . | . . . . Exploration Rate (%) 47 | 4 80 59 46 Regions Visited 3 Branch Regions 1 Pre-discovered Areas . | . . . . Known Exits Taken . | . . . . Unknown Exits Taken 3 | 1 1 1 . Scrap Searched . | . . . . Spaces Dug . | . . . . Terrain Destroyed 286 | . 90 99 97 Melee . | . . . . Projectile . | . . . . AOE 286 | . 90 99 97 Terrain Rammed . | . . . . Walls Destroyed . | . . . . Machines Disabled . | . . . . Actions | -11 -10 -10 -9 --------- Run | Yrd Mat Min Mat Total 1426 | 58 466 351 551 Wait 49 | . . 29 20 Move 1216 | 46 430 293 447 Hop . | . . . . Pick Up 34 | 5 13 3 13 Fast Attach 5 | 4 . 1 . Attach 19 | . 3 7 9 Detach 1 | . . 1 . Swap 2 | 1 1 . . Drop 3 | 1 1 1 . Fire 79 | 1 17 14 47 Melee 15 | . . . 15 Ram . | . . . . Kick 1 | . 1 . . Crush 2 | . . 2 . Escape Stasis . | . . . . Rewire . | . . . . Trap . | . . . . Miscellaneous . | . . . . Route ------- -11/Scrapyard -10/Materials (discovered 3 exits: *Mat / [*Min x2]) -10/Mines -9/Materials (discovered 2 exits: [*Mat x2]) History --------- Turn | Location | Event 15 | -11/Scrapyard | Discovered new exit (range 16) 58 | -11/Scrapyard | Entered Materials 309 | -10/Materials | Build established: Mutant 330 | -10/Materials | Discovered new exit (range 15) 730 | -10/Materials | Discovered new exit (range 4) 817 | -10/Materials | Discovered new exit (range 15) 931 | -10/Materials | Entered Mines 998 | -10/Mines | Learned Materials garrison access intel 1039 | -10/Mines | Lost 3 parts (1p1n1u) 1545 | -10/Mines | Discovered new exit (range 5) 1576 | -10/Mines | Core integrity fell below 50% 1604 | -10/Mines | Entered Materials 1604 | -9/Materials | Evolved 2 slots: Utility x2 1619 | -9/Materials | Lost 3 parts (1p2w) 2543 | -9/Materials | Discovered new exit (range 15) 2617 | -9/Materials | Core integrity fell below 50% 2658 | -9/Materials | Lost 3 parts (1p1u1w) 2990 | -9/Materials | Discovered new exit (range 12) 3047 | -9/Materials | Core integrity fell below 20% 3381 | -9/Materials | Destroyed by G-34 Mercenary with Small Laser Last Messages --------------- 03326_ L-31 Rogue destroyed. 03330_ K-01 Serf collects debris. 03330_ G-34 Mercenary destroyed. 03332_ Acquired 47 matter. 03334_ K-01 Serf collects debris. 03337_ Acquired 33 matter. 03337_ K-01 Serf collects debris. 03338_ K-01 Serf cleans the Atomic Centrifuge. 03341_ K-01 Serf collects debris. 03344_ K-01 Serf cleans the Atomic Centrifuge. 03346_ Acquired Imp. Aluminum Leg. 03347_ K-01 Serf cleans the Atomic Centrifuge. 03351_ R-06 Scavenger collects Core Shielding. 03351_ Acquired Aluminum Leg. 03353_ K-01 Serf cleans the Atomic Centrifuge. 03363_ K-01 Serf collects debris. 03372_ K-01 Serf cleans the Atomic Centrifuge. Map ----- +----------------------------------------------------+ | ??????????????????????????????????# # | | ??????????????????????????????????# # | | ??????????????????????????????????# """ # "T" | | ??????????????????????????????????# """ # """ | | ??????????????????????????????????# """ # | | ??????????????????????????????????# """ ##### | | ??????????????????????????????????# ## | | ??????????????????????????????????# ## | | ??????????????????????????????????# ## " | | ??????????????????????????????????# ## "" | | ??????????????????#######?????????# ## "" | | ??????????????????# ########### ""T"" ## "" | | ??????????????????# """"" ## " | | ??????????????????# ## "" | | ??????????????????# ## "" | | ??????????????????# ################## ## "" | | ??????????????????## ########## ## ^^## " | | ???????????????????# # T # ## ## | | ???????????????????# # """ # ## ## | | ???????????????????# /g """ # """ # ###+ | | ???????????????????# # """ # """ # | | ???????????????????#^ ^# m # """ + | | ???????????????????# # """ # # | | ?????????????????? # """ #"" """ # #### | | ????????????????? # """ #"Y """ ## ##??? | | ???????????????? # @ k #"" """ ## #???? | | ???????????????####+##########+## ## #???? | | ???????????????????????????### ########### #???? | | ???????????????????????????# #???? | | ???????????????????????????# #???? | | ???????????????????????????# #???? | | ???????????????????????????# #???? | | ???????????????????????????# """ #???? | | ???????????????????????????# """"" #???? | | ???????????????????????????# """"" #???? | | ???????????????????????????# "" """"" ##??? | | ???????????????????????????# "Y """ ##??? | | ?????????????????????? "" ##??? | | ?????????????????????? ##??? | | ???????????????????? ##??? | | ?????????????????????#########/########## ###??? | | ????????????????????????????? ?????????# ###??? | | ????????????????????????????"""????#????# #????? | | ?????????????????????????????"?????# ???# #####? | | ???????????????????????????????????# ???# # ## | | ???????????????????????????????????# ??# ###### | | ???????????????????????????????????# ?# # + | | ???????????????????????????????????# ?# # # | | ???????????????????????????????????# # # # | | ???????????????????????????????????# # # # | +----------------------------------------------------+ Best States ------------- Heat Dissipation 35 Energy Generation 10 Energy Capacity 375 Matter Stores 300 Matter Capacity 300 Sight Range 16 Terrain Scan Density 85 Evasion (%) 55 Recoil Reduction 2 Item Schematics ----------------- None Robot Schematics ------------------ None Fabricated ------------ Nothing Alien Tech Used ----------------- None Achievements -------------- Dynamic Key Challenges ------------ None Game ------ Seed CommSubdwellerArray Manual? 0 Play Time 00:20:38 Cumulative 9.7 hours Start 2024.05.02 @ 23:45:39 End 2024.05.04 @ 21:23:56 Sessions 3 Manual Loads 0 Difficulty Rogue Special Mode None Game No. 13 Rogue 13 Adventurer 0 Explorer 0 Win Type - Total 0 Types 0/0/0/0/0/0/0/0/0 Lore% 12 Gallery% 15 Achievement% 15 Wizard Run 0 Options --------- Layout 2 ASCII 0 Keyboard 0 Movement Mouse Keybinds 0 Fullscreen 1 Font 48/Smallcaps Map View 25x22 Zoom Use 99% Tactical HUD 1 Map Filters NONE Filters NONE Steam 1 RUN: 31d22267-1ed8-45b2-a477-3558e94df7e8